bitfinex-derivatives/quotes_SOLF0:USTF0_20260316
["timestamp","ask_amount","ask_price","bid_price","bid_amount"]
[1773674127969,3.64526054,93.589,93.495,3.56470677]
[1773674128172,3.64526054,93.589,93.511,3.56470677]
[1773674128473,3.89097576,93.609,93.513,3.56470677]
[1773674129070,3.89097576,93.609,93.512,33.66]
[1773674129071,3.89097576,93.609,93.515,3.56470677]
[1773674129376,3.89097576,93.609,93.521,3.56470677]
[1773674129674,3.89097576,93.609,93.523,3.56470677]
[1773674131277,3.89097576,93.639,93.541,3.56470677]
[1773674132969,3.89097576,93.639,93.561,3.56470677]
[1773674133175,3.89097576,93.658,93.563,3.56470677]
[1773674133371,3.89097576,93.658,93.581,3.56470677]
[1773674133976,3.89097576,93.658,93.487,19.83673963]
[1773674133977,3.89097576,93.719,93.601,3.56470677]
[1773674134274,3.89097576,93.719,93.603,3.56470677]
[1773674134474,3.89097576,93.719,93.605,3.56470677]
[1773674135266,3.89097576,93.719,93.6,8.68805867]
[1773674135267,3.89097576,93.719,93.607,3.56470677]
[1773674136278,3.89097576,93.719,93.621,3.56470677]
[1773674137077,3.89097576,93.719,93.623,3.56470677]
[1773674138678,3.89097576,93.719,93.622,33.64]
[1773674138679,3.89097576,93.719,93.641,3.56470677]
[1773674138879,3.89097576,93.749,93.641,3.56470677]
[1773674139081,3.89097576,93.749,93.643,3.56470677]
[1773674139281,3.89097576,93.749,93.644,33.64]
[1773674139677,3.89097576,93.749,93.643,3.56470677]
[1773674139879,3.89097576,93.729,93.623,3.56470677]
[1773674141580,3.89097576,93.729,93.609,19.225]
[1773674141581,3.89097576,93.729,93.641,3.56470677]
[1773674142987,3.89097576,93.729,93.621,3.56470677]
[1773674143384,3.89097576,93.729,93.611,33.62]
[1773674143385,3.89097576,93.709,93.611,33.62]
[1773674143582,3.89097576,93.709,93.612,3.56470677]
[1773674144582,3.89097576,93.709,93.621,3.56470677]
[1773674149796,3.89097576,93.709,93.623,3.56470677]
[1773674151097,3.89097576,93.709,93.625,3.56470677]
[1773674152794,3.84783916,93.669,93.581,3.56186853]
[1773674157709,3.84783916,93.669,93.583,3.62484181]
[1773674158507,3.77420574,93.689,93.585,3.62484181]
[1773674158705,3.77420574,93.729,93.601,3.62484181]
[1773674158901,3.77420574,93.729,93.603,3.62484181]
[1773674160511,3.77420574,93.709,93.603,3.62484181]
[1773674162503,3.77420574,93.709,93.606,3.62484181]
[1773674162706,3.77420574,93.709,93.56,32.08]
[1773674162707,3.77420574,93.709,93.621,3.62484181]
[1773674162900,3.77420574,93.709,93.62,8.68805867]
[1773674162901,3.77420574,93.709,93.623,3.62484181]
[1773674164616,3.77420574,93.699,93.602,3.62484181]
[1773674164810,3.77420574,93.699,93.604,3.62484181]
[1773674165313,3.77420574,93.699,93.606,3.62484181]
[1773674166213,3.77420574,93.699,93.61,3.62484181]
[1773674170418,3.77420574,93.699,93.611,3.62484181]
[1773674171318,3.77420574,93.699,93.614,3.62484181]
[1773674171917,3.77420574,93.739,93.631,3.62484181]
[1773674172120,3.77420574,93.739,93.633,3.62484181]
[1773674172419,3.77420574,93.739,93.651,3.62484181]
[1773674175829,3.77420574,93.739,93.655,3.62484181]
[1773674178425,3.77420574,93.739,93.656,3.62484181]
[1773674180923,19.195,93.756,93.637,3.62484181]
[1773674180924,3.77420574,93.729,93.637,3.62484181]
[1773674182726,3.53815669,93.709,93.618,3.6293965]
[1773674182924,3.53815669,93.709,93.54,33.18739708]
[1773674182925,3.53815669,93.689,93.6,37.2293965]
[1773674183228,3.53815669,93.689,93.6,3.6293965]
[1773674188225,3.53815669,93.669,93.58,3.6293965]
[1773674188728,3.53815669,93.668,93.58,3.6293965]
[1773674189323,3.53815669,93.668,93.582,3.6293965]
[1773674190829,3.53815669,93.681,93.582,3.6293965]
[1773674193028,3.53815669,93.681,93.601,3.6293965]
[1773674194733,3.53815669,93.681,93.603,3.6293965]
[1773674196732,3.53815669,93.709,93.603,3.6293965]
[1773674197121,3.53815669,93.709,93.607,19.226]
[1773674197325,3.53815669,93.709,93.621,3.6293965]
[1773674198030,3.53815669,93.707,93.622,33.62]
[1773674198230,3.53815669,93.707,93.622,37.2493965]
[1773674199832,3.53815669,93.707,93.623,3.6293965]
[1773674200224,3.53815669,93.726,93.623,3.6293965]
[1773674200425,3.53815669,93.726,93.625,3.6293965]
[1773674201430,3.53815669,93.726,93.641,3.6293965]
[1773674202933,3.53815669,93.726,93.643,3.6293965]
[1773674203130,33.62,93.736,93.661,3.6293965]
[1773674203430,3.53815669,93.745,93.663,3.6293965]
[1773674206530,3.53815669,93.745,93.665,3.6293965]
[1773674206930,3.53815669,93.745,93.652,33.62]
[1773674207639,3.53815669,93.709,93.609,33.62]
[1773674207829,3.53815669,93.709,93.61,3.6293965]
[1773674208030,3.53815669,93.707,93.61,3.6293965]
[1773674209138,3.53815669,93.742,93.638,3.6293965]
[1773674209434,3.53815669,93.74,93.638,3.6293965]
[1773674209635,3.53815669,93.729,93.638,3.6293965]
[1773674210636,3.53815669,93.727,93.64,3.6293965]
[1773674211443,3.53815669,93.727,93.642,3.6293965]
[1773674211636,3.53815669,93.727,93.643,3.6293965]
[1773674214239,3.53815669,93.727,93.645,3.71070197]
[1773674214630,3.91509218,93.719,93.644,33.62]
[1773674214832,3.91509218,93.719,93.645,3.71070197]
[1773674215838,3.91509218,93.743,93.651,3.71070197]
[1773674216043,3.91509218,93.743,93.653,3.71070197]
[1773674221038,3.91509218,93.739,93.653,3.71070197]
[1773674221745,3.91509218,93.739,93.65,33.6]
[1773674221746,3.91509218,93.739,93.655,3.71070197]
[1773674224050,33.6,93.758,93.655,3.71070197]
[1773674224051,3.91509218,93.757,93.655,3.71070197]
[1773674227550,3.91509218,93.751,93.655,3.71070197]
[1773674228051,3.91509218,93.739,93.655,3.71070197]
[1773674230252,33.6,93.758,93.654,33.6]
[1773674230253,3.91509218,93.757,93.658,3.71070197]
[1773674232051,3.91509218,93.757,93.636,19.24747378]
[1773674232052,3.91509218,93.757,93.671,3.71070197]
[1773674232253,3.91509218,93.757,93.673,3.71070197]
[1773674232956,17.148,93.778,93.711,3.71070197]
[1773674233254,3.91509218,93.821,93.731,3.71070197]
[1773674233453,3.91509218,93.821,93.733,3.71070197]
[1773674233754,3.91509218,93.819,93.732,33.6]
[1773674234055,3.91509218,93.819,93.714,3.71070197]
[1773674234251,3.91509218,93.817,93.715,33.6]
[1773674234550,3.91509218,93.817,93.716,3.71070197]
[1773674234756,3.91509218,93.815,93.718,3.71070197]
[1773674234949,3.91509218,93.815,93.72,3.71070197]
[1773674236656,3.91509218,93.815,93.722,3.71070197]
[1773674237257,3.91509218,93.815,93.731,3.71070197]
[1773674237451,3.91509218,93.834,93.731,3.71070197]
[1773674237657,3.91509218,93.834,93.73,8.67246715]
[1773674237658,3.91509218,93.834,93.733,3.71070197]
[1773674238261,3.91509218,93.834,93.739,3.71070197]
[1773674238863,3.91509218,93.834,93.751,3.71070197]
[1773674239255,3.91509218,93.832,93.74,33.6]
[1773674239559,3.91509218,93.819,93.74,33.6]
[1773674242266,3.91509218,93.819,93.741,3.62245303]
[1773674242662,3.69576566,93.799,93.719,3.62245303]
[1773674242871,3.69576566,93.779,93.701,3.62245303]
[1773674245770,3.69576566,93.779,93.681,3.62245303]
[1773674245971,3.69576566,93.778,93.683,3.62245303]
[1773674247371,3.69576566,93.778,93.685,3.62245303]
[1773674248478,3.69576566,93.778,93.687,3.62245303]
[1773674250675,3.69576566,93.8,93.701,3.62245303]
[1773674250878,3.69576566,93.8,93.703,3.62245303]
[1773674251079,3.69576566,93.8,93.702,33.58]
[1773674251080,3.69576566,93.819,93.721,3.62245303]
[1773674251267,3.69576566,93.819,93.72,8.67246715]
[1773674251268,3.69576566,93.819,93.723,3.62245303]
[1773674251571,3.69576566,93.819,93.725,3.62245303]
[1773674251875,3.69576566,93.844,93.741,3.62245303]
[1773674253073,3.69576566,93.844,93.743,3.62245303]
[1773674254273,33.58,93.861,93.742,33.58]
[1773674254274,33.58,93.861,93.761,3.62245303]
[1773674254480,3.69576566,93.861,93.761,3.62245303]
[1773674254669,3.69576566,93.861,93.781,3.62245303]
[1773674254874,3.69576566,93.861,93.783,3.62245303]
[1773674255275,3.69576566,93.859,93.783,3.62245303]
[1773674255476,3.69576566,93.859,93.779,33.58]
[1773674255778,8.67246715,93.86,93.765,3.62245303]
[1773674255779,3.69576566,93.857,93.765,3.62245303]
[1773674257582,3.69576566,93.839,93.765,3.62245303]
[1773674258478,3.69576566,93.839,93.746,3.62245303]
[1773674259183,3.69576566,93.837,93.746,3.62245303]
[1773674259479,3.69576566,93.819,93.746,3.62245303]
[1773674264193,3.69576566,93.819,93.721,3.62245303]
[1773674264486,8.67246715,93.82,93.721,3.62245303]
[1773674264487,3.69576566,93.817,93.721,3.62245303]
[1773674267390,3.69576566,93.799,93.721,3.62245303]
[1773674267793,3.69576566,93.799,93.723,3.62245303]
[1773674267985,3.69576566,93.799,93.725,3.62245303]
[1773674270291,8.67246715,93.82,93.725,3.62245303]
[1773674270292,3.69576566,93.819,93.725,3.62245303]
[1773674270595,3.69576566,93.819,93.727,3.62245303]
[1773674271098,3.69576566,93.819,93.701,32.08]
[1773674271099,3.69576566,93.819,93.731,3.62245303]
[1773674271295,3.69576566,93.819,93.73,8.67246715]
[1773674271296,3.69576566,93.819,93.733,3.62245303]
[1773674271799,3.69576566,93.799,93.712,3.62245303]
[1773674272595,33.58,93.816,93.712,3.62245303]
[1773674272804,3.76096553,93.818,93.731,3.91037593]
[1773674273301,3.76096553,93.818,93.73,8.67246715]
[1773674273302,3.76096553,93.818,93.733,3.91037593]
[1773674273797,8.67246715,93.84,93.733,3.91037593]
[1773674274002,3.76096553,93.839,93.751,3.90512829]
[1773674276298,3.76096553,93.839,93.717,3.90512829]
[1773674276503,19.174,93.862,93.718,3.90512829]
[1773674276504,3.61458236,93.819,93.718,3.90512829]
[1773674277903,3.61458236,93.818,93.718,3.90512829]
[1773674279506,3.61458236,93.818,93.731,3.90512829]
[1773674280405,3.61458236,93.818,93.732,3.90512829]
[1773674281302,3.61458236,93.818,93.723,33.58]
[1773674281500,3.61458236,93.799,93.714,3.90512829]
[1773674281705,3.61458236,93.839,93.731,3.90512829]
[1773674281906,9.87229306,93.863,93.73,8.67246715]
[1773674281907,3.61458236,93.837,93.735,3.90512829]
[1773674282107,3.61458236,93.837,93.751,3.90512829]
[1773674282309,3.61458236,93.837,93.753,3.90512829]
[1773674283017,3.61458236,93.837,93.755,3.90512829]
[1773674286312,33.58,93.858,93.756,3.90512829]
[1773674286614,19.79479285,93.925,93.754,33.58]
[1773674286615,3.61458236,93.888,93.821,3.90512829]
[1773674286912,3.61458236,93.888,93.823,3.90512829]
[1773674287412,3.61458236,93.929,93.823,3.90512829]
[1773674288210,3.61458236,93.929,93.825,3.90512829]
[1773674289518,3.61458236,93.929,93.827,3.90512829]
[1773674289819,3.61458236,93.929,93.82,8.65519786]
[1773674289820,3.61458236,93.929,93.829,3.90512829]
[1773674295826,3.61458236,93.929,93.841,3.90512829]
[1773674297626,3.61458236,93.929,93.843,3.90512829]
[1773674298015,3.61458236,93.954,93.861,3.90512829]
[1773674298220,19.145,94.002,93.842,33.56]
[1773674298221,3.61458236,93.973,93.881,3.90512829]
[1773674299418,3.61458236,93.949,93.861,3.90512829]
[1773674299625,3.61458236,93.949,93.855,33.54]
[1773674299826,3.61458236,93.949,93.856,3.90512829]
[1773674300227,3.61458236,93.947,93.856,3.90512829]
[1773674300623,3.61458236,93.947,93.858,3.90512829]
[1773674301329,3.61458236,93.939,93.854,3.90512829]
[1773674301522,3.61458236,93.959,93.861,3.90512829]
[1773674301827,3.61458236,93.959,93.881,3.90512829]
[1773674302028,3.61458236,93.959,93.883,3.90512829]
[1773674303022,3.90556998,93.979,93.885,3.78367528]
[1773674303225,3.90556998,93.979,93.887,3.78367528]
[1773674306919,3.90556998,93.962,93.887,3.78367528]
[1773674307627,3.90556998,93.962,93.889,3.78367528]
[1773674307828,3.90556998,93.954,93.889,3.78367528]
[1773674308326,3.90556998,93.954,93.891,3.78367528]
[1773674308527,3.90556998,93.972,93.891,3.78367528]
[1773674308825,3.90556998,93.972,93.893,3.78367528]
[1773674309832,206.7,94.03,93.892,33.54]
[1773674309833,3.90556998,93.996,93.911,3.78367528]
[1773674310829,3.90556998,93.996,93.913,3.78367528]
[1773674311024,0.06714232,93.963,93.915,3.78367528]
[1773674311229,0.06714232,93.963,93.9,8.65519786]
[1773674311230,0.06714232,93.963,93.917,3.78367528]
[1773674311826,3.90556998,93.996,93.918,33.52]
[1773674312130,3.90556998,93.996,93.919,3.78367528]
[1773674313033,3.90556998,94.03,93.931,3.78367528]
[1773674313224,3.90556998,94.03,93.933,3.78367528]
[1773674313428,3.90556998,94.019,93.933,3.78367528]
[1773674313624,3.90556998,94.019,93.934,33.52]
[1773674313829,3.90556998,94.019,93.935,3.78367528]
[1773674314029,3.90556998,94.019,93.936,3.78367528]
[1773674314728,3.90556998,94.019,93.938,3.78367528]
[1773674315230,3.90556998,94.019,93.94,3.78367528]
[1773674316334,3.90556998,94.019,93.932,33.52]
[1773674316634,3.90556998,94.019,93.933,3.78367528]
[1773674318136,3.90556998,93.999,93.915,3.78367528]
[1773674320230,3.90556998,94.023,93.915,3.78367528]
[1773674320430,3.90556998,94.023,93.931,3.78367528]
[1773674320632,33.52,94.079,93.932,3.78367528]
[1773674320633,3.90556998,94.019,93.932,3.78367528]
[1773674322034,1.85183214,94.051,93.89,8.65519786]
[1773674322035,3.87708136,93.999,93.911,3.87158896]
[1773674323339,3.87708136,93.999,93.913,3.87158896]
[1773674323836,3.87708136,93.999,93.914,33.52]
[1773674324036,3.87708136,93.989,93.895,3.87158896]
[1773674324338,3.87708136,93.989,93.897,3.87158896]
[1773674325239,3.87708136,93.989,93.897,37.39158896]
[1773674325441,19.146,94.001,93.862,31.99]
[1773674325442,3.87708136,93.969,93.877,3.87158896]
[1773674327742,3.87708136,93.949,93.877,3.87158896]
[1773674328740,3.87708136,93.949,93.863,33.52]
[1773674328941,3.87708136,93.949,93.864,3.87158896]
[1773674330738,8.65519786,93.93,93.864,3.87158896]
[1773674330935,3.87708136,93.929,93.861,33.52]
[1773674331445,3.87708136,93.929,93.862,3.87158896]
[1773674332843,3.87708136,93.929,93.812,19.184]
[1773674332844,3.63567122,93.947,93.871,3.6991834]
[1773674333044,3.63567122,93.947,93.873,3.6991834]
[1773674333438,33.52,94.001,93.873,3.6991834]
[1773674333439,3.63567122,93.969,93.873,3.6991834]
[1773674333639,3.63567122,93.969,93.812,19.24747378]
[1773674333640,3.63567122,94.009,93.891,3.6991834]
[1773674333942,3.63567122,93.989,93.893,3.6991834]
[1773674335347,3.7751728,93.969,93.893,3.6991834]
[1773674339142,3.7751728,93.969,93.878,33.52]
[1773674339348,3.7751728,93.959,93.878,37.39436182]
[1773674339548,3.7751728,93.959,93.879,3.87436182]
[1773674339853,3.7751728,93.959,93.818,31.99]
[1773674339854,3.7751728,93.959,93.861,3.87436182]
[1773674345557,3.7751728,93.959,93.858,33.52]
[1773674345558,3.7751728,93.974,93.864,3.87436182]
[1773674345756,3.7751728,93.974,93.866,3.87436182]
[1773674346554,3.7751728,93.974,93.871,3.87436182]
[1773674346953,8.63734066,93.97,93.871,3.87436182]
[1773674347150,3.7751728,93.969,93.873,3.87436182]
[1773674348153,33.52,93.999,93.855,3.87436182]
[1773674348154,3.7751728,93.949,93.855,3.87436182]
[1773674348353,13.0202834,93.999,93.855,3.87436182]
[1773674348354,3.7751728,93.929,93.855,3.87436182]
[1773674348556,3.7751728,93.909,93.836,3.87436182]
[1773674350054,3.7751728,93.929,93.841,3.87436182]
[1773674350357,3.7751728,93.929,93.843,3.87436182]
[1773674352954,3.7751728,93.929,93.82,27.81934066]
[1773674352955,3.7751728,93.929,93.845,3.87436182]
[1773674355656,3.7751728,93.929,93.847,3.87436182]
[1773674356556,3.7751728,93.929,93.848,33.52]
[1773674357659,3.7751728,93.929,93.848,37.39436182]
[1773674358054,3.7751728,93.929,93.848,3.87436182]
[1773674358260,3.7751728,93.909,93.831,33.52]
[1773674358459,3.7751728,93.909,93.832,33.52]
[1773674359060,3.7751728,93.909,93.832,37.39436182]
[1773674359260,3.7751728,93.909,93.833,3.87436182]
[1773674359463,3.7751728,93.909,93.834,33.52]
[1773674359655,3.7751728,93.909,93.833,3.87436182]
[1773674362666,3.7751728,93.909,93.835,3.78000014]
[1773674364356,3.84230503,93.929,93.841,3.78000014]
[1773674364755,3.84230503,93.929,93.843,3.78000014]
[1773674365561,3.84230503,93.969,93.861,3.78000014]
[1773674365961,3.84230503,93.969,93.863,3.78000014]
[1773674366264,3.84230503,93.969,93.865,3.78000014]
[1773674366566,3.84230503,93.969,93.867,3.78000014]
[1773674367470,3.84230503,93.969,93.871,3.78000014]
[1773674367771,3.84230503,93.969,93.872,37.32000014]
[1773674367970,3.84230503,93.969,93.873,3.78000014]
[1773674371166,3.84230503,93.949,93.873,3.78000014]
[1773674376371,7.94644018,93.976,93.873,3.78000014]
[1773674376372,3.84230503,93.975,93.873,3.78000014]
[1773674377068,3.84230503,93.975,93.881,3.78000014]
[1773674377375,3.84230503,93.975,93.883,3.78000014]
[1773674378078,3.84230503,93.975,93.885,3.78000014]
[1773674379577,3.84230503,94.009,93.901,3.78000014]
[1773674380772,3.84230503,93.999,93.901,3.78000014]
[1773674381171,3.84230503,93.999,93.902,33.52]
[1773674381479,3.84230503,93.999,93.903,3.78000014]
[1773674383171,3.84230503,93.999,93.905,3.78000014]
[1773674384575,3.84230503,93.999,93.906,33.52]
[1773674384781,3.84230503,93.999,93.908,3.78000014]
[1773674391085,3.84230503,93.999,93.911,3.78000014]
[1773674391888,3.84230503,94.019,93.911,3.78000014]
[1773674392086,3.84230503,94.019,93.913,3.78000014]
[1773674393081,3.84230503,94.019,93.932,3.62374254]
[1773674394788,3.84230503,94.019,93.934,3.88250296]
[1773674400789,3.86391461,94.009,93.941,3.88250296]
[1773674400994,3.86391461,94.009,93.951,3.88250296]
[1773674402194,3.86391461,94.009,93.94,3.62181471]
[1773674402393,3.86391461,94.009,93.941,33.5]
[1773674402594,3.86391461,94.009,93.951,3.88250296]
[1773674403096,3.86391461,94.009,93.96,7.50431767]
[1773674403294,3.86391461,94.009,93.96,3.88250296]
[1773674404396,0.06709751,93.994,93.96,3.88250296]
[1773674404804,0.06709751,93.994,93.96,7.50348388]
[1773674405001,0.06709751,93.994,93.961,3.88250296]
[1773674405205,0.06709751,93.994,93.942,3.88250296]
[1773674405404,0.06709751,93.994,93.951,3.88250296]
[1773674405701,0.06709751,93.994,93.941,33.5]
[1773674406003,0.06709751,93.994,93.92,3.62098092]
[1773674406004,3.86391461,93.979,93.92,3.62098092]
[1773674406204,3.86391461,93.979,93.915,3.88250296]
[1773674406500,3.62098092,93.97,93.915,3.88250296]
[1773674407304,3.86391461,93.979,93.92,3.62098092]
[1773674407500,3.86391461,93.979,93.921,3.88250296]
[1773674407905,3.62098092,93.97,93.921,3.88250296]
[1773674408903,3.86391461,93.979,93.921,3.88250296]
[1773674409400,3.86391461,94.019,93.921,3.88250296]
[1773674410603,3.86391461,93.999,93.921,3.88250296]
[1773674411909,3.86391461,93.999,93.899,3.88250296]
[1773674412107,3.86391461,93.999,93.901,3.88250296]
[1773674412699,3.86391461,93.999,93.911,3.88250296]
[1773674414107,3.86391461,93.999,93.913,3.88250296]
[1773674414319,3.86391461,93.999,93.912,33.5]
[1773674414320,3.86391461,94.034,93.931,3.88250296]
[1773674414802,3.86391461,94.034,93.951,3.88250296]
[1773674416104,3.86391461,94.034,93.953,3.88250296]
[1773674419104,3.86391461,94.063,93.971,3.88250296]
[1773674419712,3.86391461,94.063,93.973,3.88250296]
[1773674420111,3.86391461,94.063,93.975,3.88250296]
[1773674421107,3.86391461,94.063,93.977,3.88250296]
[1773674422116,3.86391461,94.063,93.981,3.88250296]
[1773674423217,3.86391461,94.063,93.983,4.04482243]
[1773674424418,4.30251027,94.049,93.961,4.04482243]
[1773674424721,4.30251027,94.049,93.963,4.04482243]
[1773674426313,4.30251027,94.049,93.946,4.04482243]
[1773674426517,4.30251027,94.049,93.948,4.04482243]
[1773674428524,4.30251027,94.049,93.95,4.04482243]
[1773674429922,4.30251027,94.049,93.952,4.04482243]
[1773674430720,3.61949697,94.03,93.971,4.04482243]
[1773674431028,7.92200724,94.03,93.971,4.04482243]
[1773674431829,4.30251027,94.029,93.971,4.04482243]
[1773674434128,7.92200724,94.02,93.961,4.04482243]
[1773674435025,4.30251027,94.02,93.961,4.04482243]
[1773674435228,7.92200724,94.02,93.961,4.04482243]
[1773674435432,7.92200724,94.02,93.97,3.61949697]
[1773674435632,4.30251027,94.02,93.97,7.6643194]
[1773674437736,3.61949697,94.03,93.971,4.04482243]
[1773674437927,4.30251027,94.029,93.971,4.04482243]
[1773674438430,4.30251027,94.059,93.991,4.04482243]
[1773674438635,3.61949697,94.05,94.0,7.6643194]
[1773674438929,4.30251027,94.059,94.001,4.04482243]
[1773674439930,3.61949697,94.07,94.011,4.04482243]
[1773674440231,4.30251027,94.059,93.994,4.04482243]
[1773674440527,3.61949697,94.04,93.98,3.61949697]
[1773674440730,3.61949697,94.04,93.981,4.04482243]
[1773674441125,4.30251027,94.039,93.981,4.04482243]
[1773674441525,3.61949697,94.05,93.991,4.04482243]
[1773674441724,4.30251027,94.057,93.991,4.04482243]
[1773674441927,4.30251027,94.057,94.0,7.6643194]
[1773674442130,3.61949697,94.05,94.001,4.04482243]
[1773674442525,4.30251027,94.049,93.99,3.61949697]
[1773674442728,4.30251027,94.049,93.99,7.6643194]
[1773674442931,27.04896562,94.105,93.973,19.151]
[1773674442932,7.92200724,94.03,93.973,4.04482243]
[1773674443131,4.30251027,94.029,93.973,4.04482243]
[1773674443734,4.30251027,94.074,93.973,4.04482243]
[1773674443929,3.61949697,94.04,93.973,4.04482243]
[1773674444134,3.61949697,94.04,93.981,4.04482243]
[1773674446234,4.30251027,94.039,93.981,4.04482243]
[1773674446930,4.30251027,94.039,93.96,4.04482243]
[1773674447132,33.5,94.075,93.96,7.6643194]
[1773674447133,3.61949697,94.02,93.96,7.6643194]
[1773674447438,7.9217168,94.074,93.96,7.6643194]
[1773674447439,3.61949697,94.01,93.96,4.04482243]
[1773674448535,4.30251027,93.999,93.943,4.04482243]
[1773674448937,4.30251027,94.017,93.96,3.61949697]
[1773674449435,3.61949697,94.01,93.951,4.04482243]
[1773674449838,7.92200724,94.01,93.951,4.04482243]
[1773674450540,4.30251027,94.01,93.951,4.04482243]
[1773674450743,7.92200724,94.01,93.951,4.04482243]
[1773674450942,4.30251027,93.999,93.951,4.04482243]
[1773674452741,4.30251027,93.999,93.95,3.61949697]
[1773674452742,4.25061528,94.029,93.97,3.61949697]
[1773674452941,4.25061528,94.029,93.971,4.39587943]
[1773674453339,4.25061528,94.009,93.953,37.89587943]
[1773674453548,4.25061528,93.999,93.953,33.5]
[1773674453838,4.25061528,93.999,93.951,4.39587943]
[1773674454544,3.61949697,94.02,93.961,4.50789881]
[1773674455044,4.60928467,94.023,93.961,4.50789881]
[1773674455231,3.61949697,94.02,93.961,4.50789881]
[1773674455744,4.60928467,94.009,93.94,8.12739578]
[1773674455944,4.60928467,94.009,93.95,3.61949697]
[1773674456343,3.61949697,94.0,93.95,3.61949697]
[1773674456545,3.61949697,94.0,93.941,4.50789881]
[1773674456842,4.60928467,93.999,93.907,4.50789881]
[1773674457140,3.61949697,93.95,93.897,4.50789881]
[1773674457339,4.60928467,93.969,93.91,3.61949697]
[1773674457648,4.60928467,93.969,93.92,3.61949697]
[1773674457839,3.61949697,93.98,93.921,4.50789881]
[1773674458035,4.60928467,93.987,93.921,4.50789881]
[1773674458036,4.60928467,93.987,93.93,3.61949697]
[1773674458346,4.60928467,93.987,93.921,4.50789881]
[1773674458347,4.60928467,93.987,93.94,3.61949697]
[1773674458747,4.60928467,93.987,93.931,4.50789881]
[1773674459149,8.6245027,93.97,93.868,14.72040567]
[1773674459342,106.337,94.026,93.846,14.72040567]
[1773674459343,8.6245027,93.94,93.846,14.72040567]
[1773674459542,8.6245027,93.97,93.851,14.72040567]
[1773674459742,8.6245027,93.97,93.853,14.72040567]
[1773674460453,19.77925141,94.043,93.81,62.0]
[1773674460454,8.6245027,93.99,93.871,14.7950534]
[1773674460644,8.6245027,93.97,93.873,14.7950534]
[1773674460844,8.6245027,93.98,93.873,14.7950534]
[1773674462447,8.6245027,93.9,93.826,14.76397101]
[1773674462847,8.6245027,93.92,93.826,14.76397101]
[1773674463946,7.9298943,93.94,93.814,33.5]
[1773674463947,8.6245027,93.9,93.814,33.5]
[1773674464150,7.9298943,93.94,93.807,14.69865484]
[1773674464341,8.6245027,93.92,93.807,14.69865484]
[1773674464546,8.6245027,93.92,93.79,8.6245027]
[1773674464547,8.6245027,93.92,93.811,14.69865484]
[1773674465550,8.6245027,93.86,93.77,14.73124913]
[1773674465751,8.6245027,93.87,93.77,14.73124913]
[1773674466548,8.6245027,93.89,93.77,14.73124913]
[1773674466746,8.65032371,93.89,93.771,14.77073188]
[1773674467155,8.65032371,93.87,93.771,14.77073188]
[1773674472265,33.52,93.889,93.771,14.77073188]
[1773674472466,8.65032371,93.85,93.771,14.77073188]
[1773674472770,19.166,93.9,93.771,14.77073188]
[1773674472771,8.65032371,93.87,93.771,14.77073188]
[1773674473364,8.65032371,93.89,93.772,33.54]
[1773674473563,8.65032371,93.89,93.773,14.74647848]
[1773674474367,33.54,93.922,93.791,14.80332143]
[1773674474561,33.54,93.922,93.766,19.193]
[1773674474562,8.65032371,93.93,93.811,14.80332143]
[1773674475468,33.54,93.929,93.811,14.80332143]
[1773674476976,8.65032371,93.92,93.811,14.80332143]
[1773674478575,179.53007243,93.937,93.831,14.81853569]
[1773674478774,8.65032371,93.96,93.851,14.81853569]
[1773674478972,33.54,93.976,93.853,14.81853569]
[1773674479177,33.54,93.975,93.853,14.81853569]
[1773674480579,8.65032371,93.96,93.853,14.81853569]
[1773674480771,8.65032371,93.94,93.853,14.81853569]
[1773674481175,33.54,93.939,93.853,14.81853569]
[1773674482978,8.65032371,93.94,93.853,14.81853569]
[1773674483275,8.65032371,93.94,93.826,33.54]
[1773674483276,33.54,93.939,93.832,14.76871979]
[1773674484078,19.152,93.967,93.832,14.76871979]
[1773674484378,8.65032371,93.94,93.832,14.76871979]
[1773674485572,8.65032371,93.92,93.813,14.75263934]
[1773674485878,8.65032371,93.9,93.813,14.75263934]
[1773674489178,106.403,93.968,93.813,14.75263934]
[1773674489179,8.65032371,93.92,93.813,14.75263934]
[1773674489377,8.65032371,93.92,93.815,14.73060807]
[1773674491279,33.54,93.919,93.815,14.73060807]
[1773674492980,33.54,93.932,93.821,14.75312184]
[1773674493177,33.54,93.932,93.823,14.75332271]
[1773674493682,33.54,93.931,93.823,14.75332271]
[1773674493881,8.65032371,93.92,93.825,14.75332271]
[1773674494081,8.65032371,93.92,93.827,14.75421353]
[1773674496783,8.65032371,93.94,93.827,14.75421353]
[1773674497086,33.54,93.931,93.827,14.75421353]
[1773674498487,8.65032371,93.94,93.827,14.75421353]
[1773674498694,8.65032371,93.96,93.841,14.74515348]
[1773674498893,8.65032371,93.96,93.843,14.74515348]
[1773674499480,19.154,93.957,93.843,14.74515348]
[1773674499686,8.65032371,93.94,93.843,14.74515348]
[1773674499991,33.54,93.939,93.843,14.74515348]
[1773674500192,8.17181495,93.938,93.843,14.74515348]